Cogmind - Beta 11.1 @@@ ROGUE MODE // 2022.06.12 @ 14:59:03 Player: Exp. Geonium Core Result: Destroyed by DAS Turret with DAS Cannon Performance ------------- Evolutions (0) 0 Regions Visited (3) 600 Robots Destroyed (5) 25 Value Destroyed (208) 208 Prototype IDs (23) 460 Alien Tech Used (0) 0 Bonus (183) 183 TOTAL SCORE: 1476 Bonus ------- Aligned with FarCom 300 Friendly Fire -117 Cogmind --------- Core Integrity 0/250 Matter 145/300 Energy 99/100 System Corruption 2% Temperature Cool (0) Movement Core (100) Ox1 Location -10/Exiles Parts ------- > --- POWER (1) -------- (None) > --- PROPULSION (2) --- (None) > --- UTILITY (2) ------ Small Storage Unit Structural Scanner > --- WEAPON (2) ------- (None) > --- INVENTORY (8) ---- Ion Engine Light Armor Plating Assault Rifle Light Assault Rifle Grenade Launcher Peak State ------------ > --- POWER ------------ Ion Engine > --- PROPULSION ------- Light Treads Light Treads > --- UTILITY ---------- Small Storage Unit Structural Scanner > --- WEAPON ----------- Assault Rifle Light Assault Rifle > --- INVENTORY -------- Ion Engine Light Assault Rifle [Rating: 7] Favorites ----------- Power Ion Engine Engine Ion Engine Propulsion Light Treads Treads Light Treads Leg Aluminum Leg Utility Small Storage Unit Device Structural Scanner Storage Small Storage Unit Weapon Light Assault Rifle Ballistic Gun Light Assault Rifle Launcher Grenade Launcher Build | -11 -10 -10 -10 ------- Run | Scr Mat Min Exi Slots Evolved . | . . . . Power . | . . . . Propulsion . | . . . . Utility . | . . . . Weapon . | . . . . Parts Attached 6 | . 6 . . Power . | . . . . Engine . | . . . . Core . | . . . . Reactor . | . . . . Propulsion 2 | . 2 . . Treads 2 | . 2 . . Leg . | . . . . Wheel . | . . . . Hover . | . . . . Flight . | . . . . Utility 1 | . 1 . . Device 1 | . 1 . . Storage . | . . . . Processor . | . . . . Hackware . | . . . . Protection . | . . . . Artifact . | . . . . Weapon 3 | . 3 . . Energy Gun . | . . . . Energy Cannon . | . . . . Ballistic Gun 1 | . 1 . . Ballistic Cannon . | . . . . Launcher 2 | . 2 . . Special Weapon . | . . . . Impact Weapon . | . . . . Slashing Weapon . | . . . . Piercing Weapon . | . . . . Special Melee Weapon . | . . . . Unidentified Prototypes . | . . . . Parts Lost 5 | . 1 . 4 Power 1 | . 1 . . Propulsion 2 | . . . 2 Utility . | . . . . Weapon 2 | . . . 2 Highest Loss Streak 4 | . 1 . 4 To Critical Strikes . | . . . . Average Slot Usage (%) 87 | . 91 85 83 Engine 4 | . 8 . . Treads 27 | . 28 28 27 Device 12 | . 11 14 14 Storage 14 | . 14 14 14 Ballistic Gun 20 | . 26 14 13 Launcher 7 | . 1 14 13 Naked Turns . | . . . . Heaviest Build 14 | 13 14 10 10 Greatest Support 40 | 20 40 40 40 Greatest Overweight (x) 3 | . . . 3 Average Overweight (x) . | . . . . Largest Inventory Capacity 8 | . 8 8 8 Average Capacity 8 | . 8 8 8 Most Carried 6 | . 6 5 5 Average Carried 3 | . 2 5 5 Final Capacity 8 | 8 8 8 8 Final Carried 6 | 6 5 5 5 Class Distribution -------------------- 100% | Mutant Dominant Class ---------------- Mutant | -10/Materials Mutant | -10/Mines Mutant | -10/Exiles Resources | -11 -10 -10 -10 ----------- Run | Scr Mat Min Exi Matter Collected 312 | 183 102 27 . Remotely . | . . . . Salvage Created 148 | . 148 . . Parts 4 | . 4 . . Haulers Intercepted . | . . . . Recyclers Shooed . | . . . . Parts Field Recycled . | . . . . Retrieved Matter . | . . . . Parts Self-Destructed . | . . . . Prevented . | . . . . Kills | -11 -10 -10 -10 ------- Run | Scr Mat Min Exi Combat Hostiles Destroyed 4 | . 4 . . Guns 3 | . 3 . . AOE 1 | . 1 . . Classes Destroyed 2 | . 2 . . Watcher 1 | . 1 . . Grunt 4 | . 4 . . Best Kill Streak 3 | . 3 . . Combat Bots Only 2 | . 2 . . Max Kills in Single Turn 1 | . 1 . . Gunslinging . | . . . . Exploded 1 | . 1 . . Melee . | . . . . Uniques/NPCs Destroyed . | . . . . Combat | -11 -10 -10 -10 -------- Run | Scr Mat Min Exi Damage Taken 795 | . 511 . 284 Core 255 | . 131 . 124 Absorbed by Shields . | . . . . Core Remaining (%) 100 | 100 . . . Volleys Fired 49 | . 47 . 2 Largest 2 | . 2 . 1 Hottest 40 | . 40 . 30 Shots Fired 92 | . 90 . 2 Gun 86 | . 86 . . Cannon . | . . . . Launcher 6 | . 4 . 2 Special . | . . . . Kinetic 86 | . 86 . . Thermal . | . . . . Explosive 6 | . 4 . 2 Electromagnetic . | . . . . Robot Hit Streak 9 | . 9 . . Robot Miss Streak 4 | . 4 . 3 Penetration Max . | . . . . Secondary Targets . | . . . . Shots Hit Robots 41 | . 41 . . Core Hits 13 | . 13 . . Critical Kills . | . . . . Critical Parts Destroyed . | . . . . Critical Strikes . | . . . . Melee Attacks . | . . . . Impact . | . . . . Slashing . | . . . . Piercing . | . . . . Sneak Attacks . | . . . . Combat Hostiles . | . . . . Follow-up Attacks . | . . . . Damage Inflicted 612 | . 573 . 39 Guns 392 | . 392 . . Cannons . | . . . . Explosions 220 | . 181 . 39 Melee . | . . . . Ramming . | . . . . Kinetic 392 | . 392 . . Thermal . | . . . . Explosive 220 | . 181 . 39 Electromagnetic . | . . . . Impact . | . . . . Slashing . | . . . . Piercing . | . . . . Highest Corruption 2 | . . . 2 Average Corruption 2 | . . . 2 Corruption Purged . | . . . . Corruption Blocked . | . . . . Overload Shots . | . . . . Overflow Damage 2 | . 2 . . Projectiles . | . . . . Explosions 2 | . 2 . . Melee . | . . . . Knockbacks . | . . . . Impact . | . . . . Kinetic . | . . . . Secondary . | . . . . Self-Inflicted Damage 21 | . 21 . . Shots 1 | . 1 . . Rammed . | . . . . Targets Rammed . | . . . . Kicked . | . . . . Crushed . | . . . . Highest Temperature 36 | . 36 . . Average Temperature 10 | . 10 . . Received Heat Transfer 321 | . 321 . . Siege Activations . | . . . . Robots Corrupted . | . . . . Combat Hostiles . | . . . . Parts Fried . | . . . . Impact Corruptions . | . . . . Robots Melted . | . . . . Combat Hostiles . | . . . . Parts Melted . | . . . . Heat Transferred . | . . . . Parts Sabotaged . | . . . . Parts Stolen . | . . . . Parts Stripped . | . . . . Power Chain Reactions . | . . . . Missiles Intercepted . | . . . . Alert | -11 -10 -10 -10 ------- Run | Scr Mat Min Exi Peak Influence 304 | . 304 60 . Initial 60 | . . 60 . Average 82 | . 92 60 . Maximum Alert Level 1 | . 1 . . Low Security (%) 92 | . 89 100 . Level 1 7 | . 10 . . Level 2 . | . . . . Level 3 . | . . . . Level 4 . | . . . . Level 5 . | . . . . High Security . | . . . . Max Security . | . . . . Squads Dispatched 2 | . 2 . . Investigation 1 | . 1 . . Extermination . | . . . . Reinforcement 1 | . 1 . . Assault . | . . . . Garrison . | . . . . Intercept . | . . . . Searches Triggered . | . . . . Construction Impeded . | . . . . Haulers Reinforced . | . . . . Active Scanning Responses . | . . . . Cargo Convoy Interrupts . | . . . . Stealth | -11 -10 -10 -10 --------- Run | Scr Mat Min Exi Distress Signals 1 | . 1 . . Communications Jammed . | . . . . Distress Signals . | . . . . Times Spotted 11 | . 8 . 3 Peak Tracking Total 12 | . 3 . 12 Tactical Retreats 1 | . . . 1 Traps | -11 -10 -10 -10 ------- Run | Scr Mat Min Exi Traps Triggered . | . . . . Indirectly . | . . . . Trap Hack Attempts . | . . . . Triggered . | . . . . Disarmed . | . . . . Reprogrammed . | . . . . Reused . | . . . . Traps Extracted . | . . . . Installed . | . . . . Triggered . | . . . . Exploded 1 | . . . 1 Machines | -11 -10 -10 -10 ---------- Run | Scr Mat Min Exi Machines Disabled 5 | . 3 . 2 Max in Single Turn 1 | . 1 . 1 Machines Sabotaged . | . . . . Garrisons Compromised . | . . . . Overloaded Fab Kills . | . . . . Hacking | -11 -10 -10 -10 --------- Run | Scr Mat Min Exi Machines Accessed 3 | . 2 . 1 Terminals 2 | . 2 . . Fabricators . | . . . . Repair Stations . | . . . . Recycling Units . | . . . . Scanalyzers . | . . . . Garrison Access . | . . . . Total Hacks 6 | . 5 . 1 Successful 3 | . 2 . 1 Failed 3 | . 3 . . Catastrophic . | . . . . Database Lockouts . | . . . . Manual 4 | . 3 . 1 Terminals 5 | . 5 . . Fabricators . | . . . . Repair Stations . | . . . . Recycling Units . | . . . . Scanalyzers . | . . . . Garrison Access . | . . . . Terminal Hacks 2 | . 1 . 1 Terminal Index 1 | . 1 . . EX-Prototype ID Bank 1 | . . . 1 Fabricator Hacks . | . . . . Repair Station Hacks . | . . . . Recycling Unit Hacks . | . . . . Scanalyzer . | . . . . Garrison Access Hacks . | . . . . Unauthorized Hacks 1 | . 1 . . Terminals 1 | . 1 . . Operators 1 | . 1 . . Fabricators . | . . . . Repair Stations . | . . . . Recycling Units . | . . . . Scanalyzers . | . . . . Garrison Access . | . . . . Data Cores Recovered . | . . . . Used . | . . . . Hacking Detections 2 | . 2 . . Full Trace Events 1 | . 1 . . Feedback Events . | . . . . Feedback Blocked . | . . . . Robot Schematics Acquired . | . . . . Robots Built . | . . . . Authchips . | . . . . Time . | . . . . Total Robot Build Rating . | . . . . Part Schematics Acquired . | . . . . Parts Built . | . . . . Authchips . | . . . . Time . | . . . . Total Part Build Rating . | . . . . Parts Repaired . | . . . . Time . | . . . . Parts Recycled . | . . . . Recycled Matter . | . . . . Retrieved Matter . | . . . . Retrieved Components . | . . . . Parts Scanalyzed . | . . . . Part Schematics Acquired . | . . . . Parts Damaged . | . . . . Bothacking | -11 -10 -10 -10 ------------ Run | Scr Mat Min Exi Used RIF Installer . | . . . . Robots Hacked . | . . . . Non-combat . | . . . . Combat . | . . . . Robot Hacks Applied . | . . . . Relay Couplers Released . | . . . . Fabnet Peak Effective % . | . . . . Robots Rewired . | . . . . Allies Hacked . | . . . . Hacks Repelled . | . . . . Allies | -11 -10 -10 -10 -------- Run | Scr Mat Min Exi Total Allies . | . . . . Largest Group . | . . . . Highest-Rated Group . | . . . . Highest-Rated Ally . | . . . . Total Orders . | . . . . Ally Attacks . | . . . . Total Damage . | . . . . Kills . | . . . . Allies Corrupted . | . . . . Allies Melted . | . . . . Intel | -11 -10 -10 -10 ------- Run | Scr Mat Min Exi Robot Analysis Total . | . . . . Derelict Logs Recovered 1 | . . 1 . Drone Launches . | . . . . Drone Recoveries . | . . . . Exploration | -11 -10 -10 -10 ------------- Run | Scr Mat Min Exi Turns Passed 1130 | . 580 263 287 Spaces Moved 611 | 1 268 165 177 Core 3 | . . . 3 Treads 607 | . 268 165 174 Legs 1 | 1 . . . Wheels . | . . . . Hover . | . . . . Flight . | . . . . Fastest Speed 100 | 120 160 160 100 Average Speed 159 | 120 160 160 160 Slowest Speed 200 | 120 160 160 200 Overloaded Moves . | . . . . Propulsion Burnouts . | . . . . Robots Hopped . | . . . . Cave-ins Triggered . | . . . . Exploration Rate (%) 43 | 3 53 64 55 Regions Visited 3 Branch Regions 2 Pre-discovered Areas . | . . . . Known Exits Taken . | . . . . Unknown Exits Taken 3 | 1 1 1 . Scrap Searched 1 | . . 1 . Spaces Dug 7 | . 7 . . Terrain Destroyed 74 | . 68 . 6 Melee . | . . . . Projectile . | . . . . AOE 74 | . 68 . 6 Terrain Rammed . | . . . . Walls Destroyed . | . . . . Machines Disabled . | . . . . Actions | -11 -10 -10 -10 --------- Run | Scr Mat Min Exi Total 680 | . 337 164 179 Wait 10 | . 10 . . Move 608 | . 267 164 177 Hop . | . . . . Pick Up 3 | . 3 . . Fast Attach 1 | . 1 . . Attach . | . . . . Detach . | . . . . Swap 5 | . 5 . . Drop 4 | . 4 . . Fire 49 | . 47 . 2 Melee . | . . . . Ram . | . . . . Kick . | . . . . Crush . | . . . . Escape Stasis . | . . . . Rewire . | . . . . Trap . | . . . . Miscellaneous . | . . . . Route ------- -11/Scrapyard -10/Materials (discovered 2 exits: [*Mat] / [*Min]) -10/Mines -10/Exiles (discovered 1 exit: [*Min]) History --------- Turn | Location | Event 1 | -11/Scrapyard | Discovered new exit (range 0) 1 | -11/Scrapyard | Entered Materials 310 | -10/Materials | Build established: Mutant 377 | -10/Materials | Core integrity fell below 50% 451 | -10/Materials | Discovered new exit (range 7) 563 | -10/Materials | Discovered new exit (range 6) 581 | -10/Materials | Entered Mines 698 | -10/Mines | Learned Materials security intel 836 | -10/Mines | Deemed a non-threat by the Exiles lab entrance 836 | -10/Mines | Discovered new exit (range 6) 844 | -10/Mines | Entered Exiles 868 | -10/Exiles | Discovered new exit (range 15) 884 | -10/Exiles | Met 8R-AWN 912 | -10/Exiles | Met EX-HEX 953 | -10/Exiles | Met EX-BIN 972 | -10/Exiles | Aligned with FarCom system 974 | -10/Exiles | Given EX-Vault access code 1017 | -10/Exiles | Opened EX-Vault 1052 | -10/Exiles | Warned to stay clear of 0b10 Research branches 1082 | -10/Exiles | Exiles lab attacked by MAIN.C 1124 | -10/Exiles | Attacked by the Exiles 1128 | -10/Exiles | Core integrity fell below 20% 1131 | -10/Exiles | Destroyed by DAS Turret with DAS Cannon Last Messages --------------- EX-BIN: And don't even think about spreading that code around. We're gonna change it right after you leave. Most certainly not to something like 1234 which I did last time as a little joke and some thief managed to sneak in here and steal a few of HEX's prototypes. 01082_ EXILES: Incoming Unaware force detected on approach from Mines. Prepare for evacuation. 01106_ EX-DEC works furiously. 01113_ Machine disabled. 01117_ EXILES: Lab perimeter alert, evacuate immediately. 01123_ Machine disabled. 01124_ EXILES: Additional hostile detected within perimeter. 01124_ Machine disabled. 01125_ Lgt. Treads destroyed. 01126_ EX-DEC: "Let's see what this bad boy can do..." 01126_ EX-DEC deploys DAS Turret. 01126_ Lgt. Treads destroyed. 01126_ Critical hit (Blast). 01127_ Knocked back. 01129_ Grenade Launcher destroyed. 01129_ Lgt. Assault Rifle destroyed. Map ----- +----------------------------------------------------+ | ?????????????????????????????????????????????????? | | ?????????????????????????????????????????????????? | | ??????????????????????????????????????????????#### | | ??????????????????????????????????????????????#### | | ??????????????????????????????????????????????#""" | | ?????????????????????????????????????????????##""" | | ?????????????????????????????????????????????##""X | | ?????????????????????????????????????????????##" | | ?????????????????????????????????????????????##" | | ?????????????????????????????????????????????##""" | | ?????????????????????????????????????????????###"# | | ????????????????????????????????????????????? "# | | ?????????????????????????????????????????????????? | | ????????????????????####?????????????????????????? | | ????????????????????####?????????????????????????? | | ????????????????????##! ?????????????????????????? | | ????????????????????## ?????????????????????????? | | ???????????????????### ????????????????###??????? | | ???????????? ###?### ????????????????###??????? | | ???????????? #####" ???????????????? """##??? | | ???????????? ##" ???????????????" """##??? | | ??????????? #"" ???????????????" ##??? | | ??????????? ###???????????"" ##??? | | ????????????## ###???????????"" "##??? | | ????????????#### %"####????????? ""##??? | | ?????????????##" @#####????????"" ""????? | | ?????????????""" ########?#### ####### | | ???????????? "###"" %############ ####### | | ??????????? ???"####" % ""#####X# "###"" | | ????????????????????###" "" "" | | ?????????????????????##"# "" | | ?????????????????????##### " | | ?????????????????????####### | | ????????????????????????###### | | ??????????????????????????#### | | ????????????????????????????### | | ????????????????????????????### | | ??????????????????????????????## | | ??????????????????????????????###" | | ???????????????????????????????#"" "" | | ????????????????????????????????""" """# | | ????????????????????????????????"" """## | | ????????????????????????????????"" ""## | | ????????????????????????????????" ### | | ????????????????????????????????"" ? | | ????????????????????????????????? ??? | | ??????????????????????????????????? ??? | | ?????????????????????????????????????? ??? | | ???????????????????????????????????????? ???? | | ?????????????????????????????????????????????????? | +----------------------------------------------------+ Best States ------------- Heat Dissipation 25 Energy Generation 10 Energy Capacity 250 Matter Stores 263 Matter Capacity 300 Sight Range 16 Terrain Scan Density 10 Evasion (%) 40 Recoil Reduction 2 Item Schematics ----------------- None Robot Schematics ------------------ None Fabricated ------------ Nothing Alien Tech Used ----------------- None Achievements -------------- None Challenges ------------ None Game ------ Seed MeleePotentialBay Manual? 0 Play Time 00:07:38 Cumulative 232.6 hours Start 2022.06.12 @ 14:52:05 End 2022.06.12 @ 14:59:03 Sessions 1 Manual Loads 0 Difficulty Rogue Special Mode None Game No. 291 Rogue 291 Adventurer 0 Explorer 0 Win Type - Total 11 Types 8/0/2/1/0/0/0/0/0 Lore% 69 Gallery% 85 Achievement% 74 Wizard Run 0 Options --------- ASCII 0 Keyboard 0 Movement Numpad Keybinds 0 Fullscreen 1 Font 18/Terminus Map View 76x50 Tactical HUD 1 Map Filters NONE Filters NONE Steam 1 RUN: 8a694513-0aa5-4cb9-b6e8-54f272d8cfbd